bitfinex/quotes_SOLUSD_20240603
["timestamp","ask_amount","ask_price","bid_price","bid_amount"]
[1717438862908,2.2368,165.42,165.36,6.2213]
[1717438863113,2.2368,165.42,165.38,2.2372]
[1717438863327,9.2668,165.42,165.38,2.2372]
[1717438863843,2.2368,165.42,165.38,8.87]
[1717438864010,9.2668,165.42,165.38,6.6328]
[1717438864211,2.2368,165.42,165.38,8.87]
[1717438864433,2.2366,165.43,165.39,2.2371]
[1717438864606,9.2666,165.43,165.39,2.2371]
[1717438865012,2.2364,165.44,165.4,2.2369]
[1717438865226,2.2365,165.44,165.39,2.237]
[1717438865471,2.2365,165.44,165.4,6.5672]
[1717438865646,9.2665,165.44,165.4,8.8041]
[1717438866136,2.2362,165.46,165.42,6.5672]
[1717438866640,9.7479834,165.51,165.43,6.5672]
[1717438866837,2.2359,165.48,165.42,7.03]
[1717438867021,9.2659,165.48,165.43,45.0]
[1717438867223,7.03,165.48,165.43,45.0]
[1717438867529,2.2358,165.49,165.46,6.5223]
[1717438867737,2.2358,165.49,165.47,6.5223]
[1717438868722,2.2358,165.49,165.45,6.1688]
[1717438869833,9.2658,165.49,165.45,6.1688]
[1717438870326,9.2658,165.49,165.46,6.1688]
[1717438870728,2.2356,165.5,165.47,6.1688]
[1717438870929,3.0412834,165.51,165.48,6.4948]
[1717438873142,2.2356,165.5,165.46,13.1233]
[1717438873343,9.2656,165.5,165.46,6.0933]
[1717438874241,2.2356,165.5,165.46,6.0933]
[1717438875220,10.0712834,165.51,165.46,8.3294]
[1717438875426,7.03,165.5,165.46,8.3294]
[1717438876132,3.0412834,165.51,165.46,8.3294]
[1717438876133,10.0712834,165.51,165.46,8.3294]
[1717438876339,7.03,165.5,165.46,2.2361]
[1717438876847,9.2656,165.5,165.46,2.2361]
[1717438877051,7.03,165.49,165.46,2.2361]
[1717438877231,7.03,165.49,165.45,47.2362]
[1717438877437,7.03,165.49,165.45,2.2362]
[1717438877918,7.03,165.49,165.46,2.2361]
[1717438878550,7.03,165.5,165.46,2.2361]
[1717438879931,9.2656,165.5,165.46,2.2361]
[1717438881254,7.03,165.47,165.42,6.4407]
[1717438881572,7.03,165.44,165.41,2.2367]
[1717438881727,7.03,165.44,165.4,2.2369]
[1717438881924,7.03,165.43,165.39,2.2371]
[1717438882158,7.03,165.43,165.38,6.1787]
[1717438882159,9.2666,165.43,165.38,8.4159]
[1717438882450,7.03,165.41,165.38,2.2372]
[1717438883337,7.03,165.41,165.39,2.2371]
[1717438884251,7.03,165.42,165.39,2.2371]
[1717438884460,7.03,165.42,165.38,2.2372]
[1717438885479,2.2366,165.43,165.38,2.2372]
[1717438885674,4.4725,165.46,165.39,2.237]
[1717438885675,2.2365,165.44,165.39,2.237]
[1717438885962,2.2362,165.46,165.41,2.2367]
[1717438886174,9.2662,165.46,165.41,2.2367]
[1717438886752,9.2663,165.45,165.4,47.2369]
[1717438887244,9.2663,165.45,165.4,53.8053]
[1717438887446,2.2362,165.46,165.41,2.2368]
[1717438887640,9.2661,165.47,165.42,2.2367]
[1717438887841,9.2661,165.47,165.42,47.2367]
[1717438889341,9.2661,165.47,165.42,53.8486]
[1717438889655,9.2661,165.47,165.43,2.2365]
[1717438889959,9.2661,165.47,165.43,45.0]
[1717438891247,9.2661,165.47,165.43,53.485]
[1717438891552,2.2361,165.47,165.43,53.485]
[1717438891765,2.2359,165.49,165.44,8.8987]
[1717438891985,2.2359,165.49,165.45,51.6623]
[1717438892468,3.0413834,165.51,165.45,51.6623]
[1717438892650,9.2656,165.5,165.46,2.236]
[1717438892849,9.2656,165.5,165.45,53.8985]
[1717438893160,2.2356,165.5,165.46,8.2689]
[1717438893889,2.2356,165.5,165.46,6.0328]
[1717438894037,2.2356,165.5,165.47,45.0]
[1717438895348,2.2357,165.49,165.47,45.0]
[1717438895964,9.2656,165.5,165.46,6.0328]
[1717438900068,9.2656,165.5,165.47,45.0]
[1717438900256,2.2356,165.5,165.47,45.0]
[1717438901299,2.2357,165.49,165.47,45.0]
[1717438901781,9.2657,165.5,165.47,45.0]
[1717438902080,9.2657,165.5,165.45,2.2362]
[1717438902283,9.2657,165.5,165.45,47.2362]
[1717438902478,2.2357,165.49,165.45,47.2362]
[1717438903775,2.2357,165.49,165.45,45.0]
[1717438903983,0.8057834,165.51,165.45,45.0]
[1717438903984,9.2659,165.48,165.45,45.0]
[1717438904282,9.2659,165.48,165.43,2.2365]
[1717438904484,7.03,165.48,165.44,2.2364]
[1717438906384,0.8057834,165.51,165.48,2.2358]
[1717438906679,0.8057834,165.51,165.47,2.236]
[1717438907668,0.8057834,165.51,165.47,2.2359]
[1717438907669,10.0712834,165.51,165.47,2.2359]
[1717438908077,7.03,165.5,165.47,2.2359]
[1717438909987,7.8357834,165.51,165.48,2.2359]
[1717438910779,0.8057834,165.51,165.48,2.2359]
[1717438913278,0.8057834,165.51,165.46,45.0]
[1717438913279,0.8057834,165.51,165.49,2.2357]
[1717438913885,0.8057834,165.51,165.48,2.2358]
[1717438914774,3.0412834,165.51,165.47,2.236]
[1717438915097,0.8057834,165.51,165.48,2.2358]
[1717438915984,0.8057834,165.51,165.5,2.2356]
[1717438916665,0.8057834,165.51,165.49,47.2357]
[1717438917177,0.8057834,165.51,165.49,2.2357]
[1717438921095,0.8057834,165.51,165.48,47.2358]
[1717438921787,7.03,165.5,165.46,2.2361]
[1717438922095,10.0712834,165.51,165.47,2.236]
[1717438922291,7.8357834,165.51,165.48,2.2358]
[1717438922471,0.8057834,165.51,165.48,2.2358]
[1717438922667,0.8057834,165.51,165.47,7.03]
[1717438922983,0.8057834,165.51,165.49,2.2357]
[1717438923188,0.8057834,165.51,165.48,2.2358]
[1717438923391,0.8057834,165.51,165.48,47.2358]
[1717438924379,0.8057834,165.51,165.48,2.2358]
[1717438928009,10.0712834,165.51,165.47,47.236]
[1717438928305,10.0712834,165.51,165.47,2.236]
[1717438928501,0.8057834,165.51,165.48,2.2358]
[1717438930117,0.8057834,165.51,165.48,47.2358]
[1717438930282,0.8057834,165.51,165.49,2.2357]
[1717438930588,0.8057834,165.51,165.49,45.0]
[1717438930981,0.8057834,165.51,165.48,47.2358]
[1717438933202,0.8057834,165.51,165.49,45.0]
[1717438933413,0.8057834,165.51,165.48,2.2358]
[1717438946917,3.0412834,165.51,165.47,47.236]
[1717438947306,3.0412834,165.51,165.47,2.236]
[1717438949696,0.8057834,165.51,165.47,2.236]
[1717438950191,0.8057834,165.51,165.48,2.2358]
[1717438950919,0.8057834,165.51,165.47,2.2359]
[1717438951214,3.0412834,165.51,165.47,2.2359]
[1717438951818,10.0712834,165.51,165.47,2.2359]
[1717438952508,7.8357834,165.51,165.47,2.2359]
[1717438953104,10.0712834,165.51,165.46,47.2361]
[1717438953317,7.03,165.49,165.42,6.4088]
[1717438953522,9.2659,165.48,165.44,2.2364]
[1717438954102,7.03,165.47,165.44,2.2364]
[1717438955918,9.266,165.47,165.43,2.2365]
[1717438956118,7.03,165.46,165.43,2.2365]
[1717438956720,2.2359,165.48,165.42,45.0]
[1717438956721,2.2361,165.47,165.42,47.2366]
[1717438956914,7.03,165.45,165.42,47.2366]
[1717438957411,2.2361,165.47,165.42,47.2366]
[1717438957615,7.03,165.45,165.42,47.2366]
[1717438959614,4.92969623,165.5,165.42,47.2366]
[1717438959615,2.2361,165.47,165.42,47.2366]
[1717438959921,7.03,165.45,165.42,47.2366]
[1717438961827,2.2361,165.46,165.42,47.2366]
[1717438962139,7.03,165.45,165.42,47.2366]
[1717438965433,2.2361,165.47,165.42,47.2366]
[1717438965610,9.2664,165.45,165.42,45.0]
[1717438965821,7.03,165.44,165.42,45.0]
[1717438966815,7.03,165.45,165.42,45.0]
[1717438967621,2.2361,165.47,165.42,47.2367]
[1717438967827,7.03,165.45,165.42,47.2367]
[1717438971539,7.03,165.45,165.42,45.0]
[1717438974423,2.2362,165.46,165.42,45.0]
[1717438974609,7.03,165.45,165.42,45.0]
[1717438980242,9.2663,165.45,165.41,2.2368]
[1717438980437,9.2663,165.45,165.4,2.2369]
[1717438980746,7.03,165.41,165.37,2.2373]
[1717438981726,7.03,165.41,165.38,2.2372]
[1717438981940,0.45829623,165.44,165.38,2.2372]
[1717438981941,7.03,165.4,165.38,2.2372]
[1717438982242,7.03,165.41,165.38,2.2372]
[1717438983215,2.2365,165.44,165.39,2.2371]
[1717438983421,9.2665,165.44,165.39,2.2371]
[1717438983943,7.03,165.43,165.39,2.2371]
[1717438984243,2.2365,165.44,165.39,2.2371]
[1717438984449,7.03,165.43,165.39,2.2371]
[1717438984639,9.2665,165.44,165.39,2.2371]
[1717438984836,2.2363,165.45,165.4,2.2369]
[1717438985044,7.03,165.44,165.4,2.2369]
[1717438985634,9.2664,165.44,165.4,2.2369]
[1717438986152,2.2364,165.44,165.4,2.2369]
[1717438986452,2.2364,165.44,165.39,8.6683]
[1717438986453,9.2664,165.44,165.39,8.6683]
[1717438986619,9.2664,165.44,165.4,45.0]
[1717438987823,7.03,165.44,165.4,45.0]
[1717438988030,2.2363,165.45,165.4,47.2369]
[1717438988329,2.2362,165.46,165.41,2.2368]
[1717438988729,9.2662,165.46,165.41,2.2368]
[1717438988927,9.2662,165.46,165.41,8.7499]
[1717438989129,9.2662,165.46,165.42,45.0]
[1717438989329,2.2362,165.46,165.42,45.0]
[1717438989523,2.236,165.47,165.42,47.2366]
[1717438989745,2.2362,165.46,165.42,51.5131]
[1717438991152,2.2362,165.46,165.42,58.5431]
[1717438991334,2.2359,165.48,165.43,2.2365]
[1717438991534,2.2359,165.48,165.44,6.0561]
[1717438991535,9.2659,165.48,165.44,6.0561]
[1717438991764,9.2659,165.48,165.45,45.0]
[1717438991956,2.2359,165.48,165.45,45.0]
[1717438995748,2.236,165.47,165.45,45.0]
[1717438996248,9.266,165.47,165.42,2.2366]
[1717438996450,2.2362,165.46,165.42,6.4912]
[1717438996640,2.2362,165.46,165.43,45.0]
[1717438997247,9.2661,165.47,165.43,45.0]
[1717438998556,2.2359,165.48,165.43,47.2365]
[1717438998757,2.236,165.47,165.43,47.2365]
[1717438998949,2.236,165.47,165.43,45.0]
[1717439000152,7.03,165.48,165.43,45.0]
[1717439000153,9.2659,165.48,165.43,47.2365]
[1717439000346,2.2359,165.48,165.43,47.2365]
[1717439000564,9.2659,165.48,165.43,47.2365]
[1717439002233,2.2361,165.47,165.43,45.0]
[1717439002457,7.03,165.46,165.43,45.0]
[1717439002949,9.2661,165.47,165.43,45.0]
[1717439003251,2.2359,165.48,165.43,2.2365]
[1717439003458,9.2659,165.48,165.43,47.2365]
[1717439003658,2.2359,165.48,165.43,47.2365]
[1717439003860,9.2658,165.49,165.44,8.3266]
[1717439004259,2.2357,165.5,165.45,53.3265]
[1717439004461,9.2657,165.5,165.45,53.3265]
[1717439004835,2.2357,165.49,165.45,53.3265]
[1717439005031,3.0412834,165.51,165.46,8.2933]
[1717439005339,0.8057834,165.51,165.47,2.2359]
[1717439005536,0.8057834,165.51,165.47,47.2359]
[1717439005953,3.0412834,165.51,165.47,47.2359]
[1717439006144,10.0712834,165.51,165.47,45.0]
[1717439006458,10.0712834,165.51,165.46,53.8823]
[1717439006868,3.0412834,165.51,165.47,6.6462]
[1717439007032,10.0712834,165.51,165.47,6.6462]
[1717439007963,3.0412834,165.51,165.47,6.6462]
[1717439008331,0.8057834,165.51,165.47,8.8822]
[1717439008644,0.8057834,165.51,165.48,6.4614]
[1717439008969,0.8057834,165.51,165.47,2.236]
[1717439009134,0.8057834,165.51,165.47,47.236]
[1717439009339,0.8057834,165.51,165.47,45.0]
[1717439009340,3.0412834,165.51,165.47,45.0]
[1717439011664,2.2356,165.5,165.47,45.0]
[1717439011970,2.2356,165.5,165.46,47.2361]
[1717439014558,10.0712834,165.51,165.46,47.2361]
[1717439016067,2.2356,165.5,165.46,47.2361]
[1717439016368,2.2356,165.5,165.46,45.0]
[1717439016944,10.0712834,165.51,165.46,47.2361]
[1717439017439,0.8057834,165.51,165.45,45.0]
[1717439017642,7.03,165.48,165.45,45.0]
[1717439017942,9.2659,165.48,165.43,2.2365]
[1717439018148,9.2659,165.48,165.42,7.03]
[1717439018149,7.03,165.48,165.42,7.03]
[1717439018338,7.03,165.48,165.45,2.2363]
[1717439018844,7.03,165.48,165.44,2.2363]
[1717439019057,9.2657,165.49,165.44,2.2363]
[1717439021166,7.03,165.48,165.44,2.2363]
[1717439021370,9.2659,165.48,165.43,47.2365]
[1717439021562,9.2659,165.48,165.44,45.0]
[1717439021945,2.2361,165.47,165.42,2.2366]
[1717439022273,9.2661,165.47,165.42,2.2366]
[1717439022567,9.2659,165.48,165.43,2.2365]
[1717439022769,9.2659,165.48,165.43,47.2365]
[1717439023649,2.2359,165.48,165.43,47.2365]
[1717439029256,2.2359,165.48,165.43,2.2365]
[1717439031473,2.2359,165.48,165.42,45.0]
[1717439031474,2.236,165.47,165.42,54.2666]
[1717439031972,2.236,165.47,165.42,47.2366]
[1717439032152,2.236,165.47,165.42,2.2366]
[1717439032353,2.2359,165.48,165.43,2.2365]
[1717439032552,0.8057834,165.51,165.45,2.2362]
[1717439032863,9.2657,165.5,165.45,2.2362]
[1717439034151,2.2357,165.5,165.45,2.2362]
[1717439034351,9.2657,165.5,165.45,2.2362]
[1717439036883,2.2357,165.5,165.45,2.2362]
[1717439039300,2.2357,165.5,165.46,2.2361]
[1717439039466,2.2357,165.5,165.46,54.2661]
[1717439040786,2.2357,165.5,165.46,52.03]
[1717439042189,3.0412834,165.51,165.46,54.2661]
[1717439043080,3.0412834,165.51,165.46,60.3249]
[1717439045086,3.0412834,165.51,165.47,7.03]
[1717439045286,3.0412834,165.51,165.48,45.0]
[1717439045287,0.8057834,165.51,165.48,45.0]
[1717439046088,3.0412834,165.51,165.48,45.0]
[1717439046672,0.8057834,165.51,165.49,9.2657]
[1717439046994,0.8057834,165.51,165.5,47.2356]
[1717439047167,0.8057834,165.51,165.5,54.2656]
[1717439047472,0.8057834,165.51,165.5,52.03]
[1717439048463,0.8057834,165.51,165.5,45.0]
[1717439048694,0.8057834,165.51,165.49,47.2357]
[1717439048982,0.8057834,165.51,165.49,45.0]
[1717439050904,3.0412834,165.51,165.46,2.2361]
[1717439051074,2.2356,165.5,165.46,2.2361]
[1717439051395,10.0712834,165.51,165.46,2.2361]
[1717439052180,10.0712834,165.51,165.46,47.2361]
[1717439053892,10.0712834,165.51,165.47,2.236]
[1717439054091,10.0712834,165.51,165.47,47.236]
[1717439054270,7.8357834,165.51,165.47,45.0]
[1717439054476,9.2659,165.48,165.43,2.2365]
[1717439054772,2.2363,165.45,165.41,9.07029591]
[1717439054981,9.2663,165.45,165.41,9.07029591]
[1717439055191,9.2663,165.45,165.4,11.30920695]
[1717439055975,7.03,165.45,165.4,11.30920695]
[1717439056170,9.2663,165.45,165.4,9.07230695]
[1717439056377,9.2663,165.45,165.4,2.2369]
[1717439056378,7.03,165.44,165.4,2.2369]
[1717439057086,9.2663,165.45,165.4,2.2369]
[1717439057479,2.2364,165.44,165.4,45.0]
[1717439057678,9.2663,165.45,165.4,45.0]
[1717439057881,9.2663,165.45,165.39,47.237]
[1717439058082,7.03,165.44,165.4,2.2369]
[1717439058407,7.03,165.44,165.4,47.2369]
[1717439058794,2.236,165.48,165.42,2.2366]
[1717439059109,2.236,165.47,165.42,47.2366]
[1717439059279,7.03,165.45,165.4,2.2369]
[1717439059609,9.2663,165.45,165.4,2.2369]
[1717439059901,7.03,165.45,165.4,47.2369]
[1717439060071,9.2662,165.46,165.4,54.2669]
[1717439060276,9.2662,165.46,165.41,2.2368]
[1717439060504,9.2662,165.46,165.41,47.2368]
[1717439062580,2.2362,165.46,165.41,47.2368]
[1717439062778,2.2363,165.45,165.41,45.0]
[1717439062985,2.2365,165.44,165.39,2.2371]
[1717439063187,9.2665,165.44,165.39,2.2371]
[1717439063407,7.03,165.44,165.4,2.2369]
[1717439063816,9.2663,165.45,165.4,2.2369]
[1717439064295,9.2663,165.45,165.4,47.2369]
[1717439065377,0.45829623,165.47,165.4,45.0]
[1717439065583,9.2663,165.45,165.4,47.2369]
[1717439067623,9.2664,165.44,165.4,45.0]
[1717439067999,9.2664,165.44,165.39,47.237]
[1717439068614,7.03,165.44,165.4,2.2369]
[1717439068983,7.03,165.44,165.4,47.2369]
[1717439069184,9.2664,165.44,165.39,2.237]
[1717439069716,9.2664,165.44,165.38,45.0]
[1717439069717,2.2365,165.43,165.38,54.2672]
[1717439070084,2.2365,165.43,165.38,47.2372]
[1717439070623,2.2365,165.43,165.39,45.0]
[1717439070785,2.2365,165.43,165.38,2.2372]
[1717439070988,8.4767,165.44,165.39,2.2371]
[1717439071191,7.03,165.43,165.39,2.2371]
[1717439072218,8.4767,165.44,165.39,2.2371]
[1717439072416,9.2663,165.45,165.4,2.2369]
[1717439073108,2.2363,165.45,165.4,9.2669]
[1717439074222,2.2364,165.44,165.4,9.2669]
[1717439074415,2.2364,165.44,165.4,7.03]
[1717439074598,2.2364,165.44,165.39,9.267]
[1717439076128,2.2362,165.46,165.41,9.2667]
[1717439077428,2.2363,165.45,165.4,2.2369]
[1717439082228,2.2364,165.44,165.4,2.2369]
[1717439082430,2.2364,165.44,165.4,7.03]
[1717439082632,2.2364,165.44,165.41,45.0]
[1717439085541,2.2364,165.44,165.39,2.237]
[1717439085542,2.2365,165.43,165.38,2.2372]
[1717439086048,2.2365,165.43,165.38,9.2672]
[1717439086349,2.2365,165.43,165.39,45.0]
[1717439086649,9.2665,165.44,165.39,47.2371]
[1717439087526,9.2665,165.44,165.4,45.0]
[1717439087720,9.2665,165.44,165.39,2.2371]
[1717439087925,2.2366,165.43,165.38,47.2372]
[1717439088128,9.2668,165.42,165.34,10.8868]
[1717439088349,2.2368,165.41,165.36,9.2674]
[1717439088547,9.2667,165.42,165.37,2.2373]
[1717439089630,9.2667,165.42,165.37,47.2373]
[1717439091845,9.2667,165.42,165.37,54.2673]
[1717439092635,9.2667,165.42,165.37,47.2373]
[1717439092843,9.2667,165.42,165.37,54.2673]
[1717439093327,2.2367,165.42,165.37,54.2673]
[1717439093528,2.2366,165.43,165.38,9.2672]
[1717439093750,2.2366,165.43,165.39,45.0]
[1717439094050,2.2366,165.43,165.38,54.2672]
[1717439094546,2.2366,165.43,165.38,45.0]
[1717439094747,2.2366,165.43,165.38,52.03]
[1717439097556,2.2367,165.42,165.38,52.03]
[1717439100057,2.2366,165.43,165.38,54.2672]
[1717439100255,2.2368,165.42,165.39,2.90199284]
[1717439100452,34.418,165.45,165.39,47.90199284]
[1717439100664,2.2368,165.41,165.39,45.0]
[1717439101041,2.2368,165.41,165.38,45.0]
[1717439101240,2.2368,165.41,165.39,2.90197754]
[1717439101454,2.2368,165.41,165.37,45.0]
[1717439101760,9.267,165.4,165.38,2.90199667]
[1717439101965,9.267,165.4,165.35,2.2376]
[1717439101966,9.267,165.4,165.39,2.90199667]
[1717439102343,15.4668,165.41,165.39,2.90199667]
[1717439102539,15.4668,165.41,165.36,2.2375]
[1717439102763,2.237,165.4,165.37,2.90205228]
[1717439102967,2.237,165.4,165.38,2.90205228]
[1717439103144,2.237,165.4,165.39,2.90205228]
[1717439103844,15.4668,165.41,165.39,2.90205228]
[1717439104045,15.4668,165.41,165.36,2.2375]
[1717439104259,15.4668,165.41,165.36,47.2375]
[1717439104470,7.03,165.39,165.36,45.0]
[1717439104771,7.03,165.39,165.33,7.03]
[1717439105062,9.2671,165.39,165.34,2.2377]
[1717439105680,8.7996,165.39,165.34,2.2377]
[1717439105859,7.03,165.38,165.34,2.2377]
[1717439106445,7.03,165.38,165.33,47.2379]
[1717439106764,7.03,165.37,165.32,2.238]
[1717439106979,7.03,165.36,165.32,2.238]
[1717439107545,13.2414,165.37,165.32,2.238]
[1717439108154,13.2414,165.37,165.32,47.238]
[1717439108445,13.2414,165.37,165.33,2.2379]
[1717439108658,7.03,165.37,165.33,47.2379]
[1717439109177,7.03,165.37,165.33,2.2379]
[1717439109344,7.03,165.38,165.34,2.2377]
[1717439110154,9.2671,165.39,165.34,2.2377]
[1717439110353,9.2672,165.38,165.34,45.0]
[1717439110550,9.2672,165.38,165.33,47.2378]
[1717439111162,7.03,165.37,165.33,47.2378]
[1717439112167,2.2372,165.38,165.33,47.2378]
[1717439112358,7.03,165.37,165.33,2.2378]
[1717439112666,21.2274,165.41,165.34,2.2378]
[1717439112878,9.267,165.4,165.35,2.2376]
[1717439113045,2.4067,165.42,165.36,9.2675]
[1717439113254,9.2667,165.42,165.37,2.2373]
[1717439113552,2.2367,165.42,165.37,2.2373]
[1717439113872,2.2367,165.42,165.37,9.2673]
[1717439114044,9.2666,165.43,165.38,45.0]
[1717439114658,26.2231,165.45,165.38,52.03]
[1717439114862,2.2367,165.43,165.38,52.03]
[1717439115754,2.2367,165.43,165.38,54.2672]
[1717439115958,2.2365,165.44,165.38,52.03]
[1717439116169,2.2362,165.46,165.41,7.03]
[1717439116344,26.8364,165.49,165.38,49.4745]
[1717439116345,2.2358,165.49,165.43,9.2664]
[1717439116663,2.2358,165.49,165.44,45.0]
[1717439116847,9.2658,165.49,165.44,45.0]
[1717439117674,2.2358,165.49,165.44,52.03]
[1717439118378,2.2358,165.49,165.44,54.2664]
[1717439118874,2.2358,165.49,165.44,52.03]
[1717439119461,2.2359,165.48,165.44,52.03]
[1717439122154,2.2358,165.49,165.44,52.03]
[1717439122363,2.2358,165.49,165.45,13.0395]
[1717439122555,2.2358,165.49,165.46,45.0]
[1717439123274,7.8357834,165.51,165.46,52.03]
[1717439123275,0.8057834,165.51,165.46,52.03]
[1717439123982,3.0413834,165.51,165.46,54.266]
[1717439125063,2.2356,165.5,165.46,52.03]
[1717439125265,2.2356,165.5,165.46,45.0]
[1717439126171,9.2656,165.5,165.46,45.0]
[1717439126376,9.2656,165.5,165.45,47.2363]
[1717439126678,9.2656,165.5,165.46,45.0]
[1717439126679,2.2358,165.49,165.46,45.0]
[1717439126886,2.2358,165.49,165.44,54.2663]
[1717439127056,9.2658,165.49,165.44,47.2363]
[1717439127255,7.03,165.49,165.44,47.2363]
[1717439127782,7.03,165.49,165.45,2.2363]
[1717439128950,9.2658,165.49,165.44,47.2364]
[1717439129377,9.2658,165.49,165.44,2.2364]
[1717439129784,7.03,165.48,165.43,47.2365]
[1717439130274,9.2659,165.48,165.43,47.2365]
[1717439131659,7.03,165.46,165.43,47.2365]
[1717439131959,7.03,165.46,165.43,2.2365]
[1717439132177,7.03,165.47,165.43,2.2365]
[1717439135666,2.2358,165.49,165.44,9.2664]
[1717439137076,2.2359,165.48,165.44,7.03]
[1717439137577,2.2359,165.48,165.43,9.2665]
[1717439137779,2.2359,165.48,165.44,45.0]
[1717439138155,2.236,165.47,165.42,2.2366]
[1717439138359,2.236,165.47,165.42,9.2666]
[1717439138578,2.236,165.47,165.43,45.0]
[1717439139263,2.236,165.47,165.42,47.2366]
[1717439140162,2.236,165.47,165.42,2.2366]
[1717439141995,9.266,165.47,165.42,2.2366]
[1717439145376,7.03,165.47,165.43,2.2365]
[1717439145686,9.2659,165.48,165.43,2.2365]
[1717439146098,2.2359,165.48,165.43,47.2365]
[1717439147495,2.2359,165.48,165.43,54.2665]
[1717439147809,9.2658,165.49,165.44,2.2364]
[1717439148493,2.2359,165.48,165.43,54.2665]
[1717439151590,2.236,165.47,165.43,47.2365]
[1717439152778,9.2659,165.48,165.43,47.2365]
[1717439152966,2.2359,165.48,165.43,47.2365]
[1717439153685,7.03,165.49,165.43,45.0]
[1717439153686,2.236,165.47,165.43,45.0]
[1717439153995,2.236,165.47,165.43,47.2365]
[1717439154779,2.2359,165.48,165.43,47.2365]
[1717439157196,2.2359,165.48,165.44,7.03]
[1717439157383,2.2359,165.48,165.45,45.0]
[1717439158594,0.8057834,165.51,165.49,2.2357]
[1717439159187,0.8057834,165.51,165.5,9.2656]
[1717439159366,0.8057834,165.51,165.5,54.2656]
[1717439159874,0.8057834,165.51,165.5,47.2356]
[1717439160584,0.8057834,165.51,165.5,45.0]
[1717439160895,0.8057834,165.51,165.49,2.2357]
[1717439160896,0.8057834,165.51,165.47,2.2359]
[1717439161097,0.8057834,165.51,165.47,47.2359]
[1717439161892,0.8057834,165.51,165.48,2.2359]
[1717439162085,0.8057834,165.51,165.48,47.2359]
[1717439162598,0.8057834,165.51,165.48,2.2359]
[1717439163494,0.8057834,165.51,165.49,2.2357]
[1717439163700,0.8057834,165.51,165.5,2.2356]
[1717439163893,0.8057834,165.51,165.5,47.2356]
[1717439164593,0.8057834,165.51,165.5,54.2656]
[1717439166487,0.8057834,165.51,165.5,47.2356]
[1717439166689,0.8057834,165.51,165.5,9.2656]
[1717439166889,0.8057834,165.51,165.5,54.2656]
[1717439170582,0.8057834,165.51,165.5,47.2356]
[1717439170782,0.8057834,165.51,165.5,9.2656]
[1717439171107,0.8057834,165.51,165.5,54.2656]
[1717439173416,0.8057834,165.51,165.5,74.3862]
[1717439173708,0.8057834,165.51,165.5,109.1118]
[1717439173910,0.2,165.54,165.53,2.2352]
[1717439174101,0.2,165.54,165.53,65.3352]
[1717439174602,0.2,165.54,165.53,60.8648]
[1717439175092,0.2,165.54,165.53,200.8648]
[1717439175307,0.2,165.54,165.53,201.2048]
[1717439176994,0.2,165.54,165.53,74.1748]
[1717439177205,0.2,165.54,165.53,73.8348]
[1717439177505,0.2,165.54,165.53,80.8648]
[1717439180523,0.2,165.54,165.53,201.0348]
[1717439181397,0.2,165.54,165.53,201.2048]
[1717439187417,0.2,165.54,165.53,205.6752]
[1717439188623,0.2,165.64,165.58,2.2345]
[1717439188811,0.2,165.64,165.62,7.03]
[1717439188996,2.4337,165.64,165.59,2.2344]